fUSD/lending_fUSD_20240823
["ID","MTS","AMOUNT","RATE_DAILY","PERIOD"]
[335695075,1724437844229,-260.58081839,0.00013857,2]
[335695077,1724437844238,-150.0,0.00013875,2]
[335695079,1724437844247,-500.0,0.00013876,2]
[335695081,1724437844257,-4000.0,0.00013894,10]
[335695083,1724437844267,-151.0,0.000139,2]
[335695085,1724437844276,-151.0,0.000139,2]
[335695087,1724437844285,-174.694179,0.000139,2]
[335695089,1724437844295,-174.694179,0.000139,2]
[335695091,1724437844304,-151.0,0.000139,2]
[335695093,1724437844313,-151.0,0.000139,2]
[335695095,1724437844322,-295.354528,0.000139,2]
[335695097,1724437844335,-151.0,0.000139,2]
[335695099,1724437844345,-151.0,0.000139,2]
[335695101,1724437844355,-151.0,0.000139,2]
[335695103,1724437844364,-151.0,0.000139,2]
[335695105,1724437844374,-151.0,0.000139,2]
[335695107,1724437844383,-151.0,0.000139,2]
[335695109,1724437844392,-151.0,0.000139,2]
[335695111,1724437844403,-151.0,0.000139,2]
[335695113,1724437844413,-210.825734,0.000139,2]
[335695115,1724437844422,-210.825734,0.000139,2]
[335695117,1724437844432,-600.0,0.000139,2]
[335695119,1724437844441,-600.0,0.000139,2]
[335695121,1724437844450,-240.434234,0.000139,2]
[335695123,1724437844460,-240.434234,0.000139,2]
[335695125,1724437844469,-151.0,0.000139,2]
[335695126,1724437844479,-151.0,0.000139,2]
[335695127,1724437844488,-151.0,0.000139,2]
[335695128,1724437844497,-151.0,0.000139,2]
[335695129,1724437844507,-395.837203,0.000139,2]
[335695130,1724437844516,-395.837203,0.000139,2]
[335695131,1724437844525,-601910.04374,0.000139,3]
[335695132,1724437844535,-151.0,0.000139,2]
[335695133,1724437844544,-151.0,0.000139,2]
[335695134,1724437844554,-162.008215,0.000139,2]
[335695135,1724437844563,-10342.63747484,0.0001395,2]
[335695136,1724437844571,-131073.34615863,0.0001399,2]
[335695137,1724437844583,-19170.71351007,0.0001399,2]
[335695138,1724437844593,-267.0957216,0.00014,2]
[335695139,1724437844602,-537.99526964,0.00014,2]
[335695140,1724437844612,-1000.0,0.00014,2]
[335695141,1724437844622,-1000.0,0.00014,2]
[335695142,1724437844631,-1000.0,0.00014,3]
[335695143,1724437844640,-150.0,0.00014,2]
[335695144,1724437844650,-1000.0,0.00014,3]
[335695145,1724437844660,-462.35,0.00014065,2]
[335695146,1724437844669,-652.0,0.000141,2]
[335695147,1724437844679,-583.22406878,0.00014106,2]
[335695148,1724437844689,-212.37057436,0.00014106,2]
[335695149,1724437844698,-260.58081839,0.00014106,2]
[335695150,1724437844707,-596.87,0.00014161,2]
[335695151,1724437844717,-150.0,0.00014212,2]
[335695152,1724437844727,-250.0,0.00014247,2]
[335695153,1724437844736,-4528.92862198,0.000143,2]
[335695154,1724437844745,-583.22406878,0.00014355,2]
[335695155,1724437844754,-212.37057436,0.00014355,2]
[335695156,1724437844764,-260.58081839,0.00014355,2]
[335695157,1724437844773,-2946.18,0.00014384,2]
[335695158,1724437844783,-151.0,0.000144,2]
[335695159,1724437844793,-222.63874778,0.000144,2]
[335695160,1724437844802,-683.16418978,0.000144,2]
[335695161,1724437844812,-823.0,0.00014441,2]
[335695162,1724437844821,-280.0,0.0001448,2]
[335695163,1724437844833,-596.87,0.00014586,2]
[335695164,1724437844843,-652.0,0.000146,2]
[335695165,1724437844853,-583.22406878,0.00014605,2]
[335695166,1724437844863,-212.37057436,0.00014605,2]
[335695167,1724437844872,-260.58081839,0.00014605,2]
[335695168,1724437844882,-150.0,0.00014737,2]
[335695169,1724437844892,-10342.63747484,0.0001474,2]
[335695170,1724437844901,-155.0,0.00014753,2]
[335695171,1724437844911,-161.36789087,0.00014782,2]
[335695172,1724437844919,-2500.0,0.00014789,2]
[335695173,1724437844929,-350.0,0.00014795,2]
[335695174,1724437844939,-40000.0,0.000148,2]
[335695175,1724437844950,-221.798552,0.000148,2]
[335695176,1724437844959,-151.0,0.000148,2]
[335695177,1724437844969,-151.0,0.000148,2]
[335695178,1724437844978,-395.837203,0.000148,2]
[335695179,1724437844988,-395.837203,0.000148,2]
[335695180,1724437844998,-151.0,0.000148,2]
[335695181,1724437845007,-151.0,0.000148,2]
[335695182,1724437845018,-162.008215,0.000148,2]
[335695183,1724437845028,-672.06,0.00014805,2]
[335695184,1724437845037,-500.0,0.00014835,2]
[335695185,1724437845047,-583.22406878,0.00014854,2]
[335695186,1724437845056,-212.37057436,0.00014854,2]
[335695187,1724437845066,-260.58081839,0.00014854,2]
[335695188,1724437845075,-150.0,0.00014854,2]
[335695189,1724437845088,-1454.03569188,0.000149,4]
[335695190,1724437845097,-635.00036041,0.000149,2]
[335695191,1724437845106,-174.694179,0.000149,2]
[335695192,1724437845115,-174.694179,0.000149,2]
[335695193,1724437845124,-151.0,0.000149,2]
[335695194,1724437845134,-151.0,0.000149,2]
[335695195,1724437845143,-151.0,0.000149,2]
[335695196,1724437845153,-600.0,0.000149,2]
[335695197,1724437845162,-600.0,0.000149,2]
[335695198,1724437845171,-240.434234,0.000149,2]
[335695199,1724437845183,-240.434234,0.000149,2]
[335695200,1724437845192,-676.90019041,0.00015,2]
[335695201,1724437845203,-624.84641014,0.00015,2]
[335695202,1724437845212,-1932.2453834,0.00015,2]
[335695203,1724437845221,-752.96525468,0.00015,2]
[335695204,1724437845231,-58902.85927394,0.00015,2]
[335695205,1724437845247,-842.07066891,0.00015,2]
[335695206,1724437845258,-2463.6322697,0.00015,2]
[335695207,1724437845270,-3158.36251728,0.00015,2]
[335695208,1724437845464,-6560.0,0.00015,2]
[335695209,1724437845476,-27784.1014,0.00015,2]
[335695210,1724437845618,-380.51,0.0001088,2]
[335695211,1724437845627,-451.90108469,0.0001089,2]
[335695212,1724437845637,-151.0,0.00011,2]
[335695213,1724437845646,-162.008215,0.0001377,2]
[335695214,1724437845656,-162.008215,0.000139,2]
[335695215,1724437845666,-800.12090487,0.00014234,2]
[335695216,1724437845675,-162.008215,0.000148,2]
[335695217,1724437845684,-3490.33704647,0.00015,2]
[335695218,1724437845697,-301.8099,0.00015,2]
[335695219,1724437845712,-394.59,0.00015,2]
[335695220,1724437845723,-262.93382777,0.00015,2]
[335695221,1724437845745,-192.432316,0.00011,2]
[335695222,1724437845755,-5788.05195693,0.00015,2]
[335695223,1724437845766,-40202.10488403,0.00015,2]
[335695225,1724437846049,-192.432316,0.00011222,2]
[335695226,1724437846058,-192.432316,0.0001305,2]
[335695227,1724437846068,-192.432316,0.0001377,2]
[335695228,1724437846078,-192.432316,0.000139,2]
[335695229,1724437846094,-139.21543196,0.000148,2]
[335695230,1724437846105,-53.21688404,0.000148,2]
[335695231,1724437846116,-9309.10426523,0.00015,2]
[335695232,1724437846127,-5461.30385498,0.00015,2]
[335695233,1724437846138,-6352.39982189,0.00015,2]
[335695234,1724437846285,-4526.9676,0.00015,2]
[335695235,1724437846334,-2999.99999932,0.00015,2]
[335695311,1724437944492,593.72655377,0.00025,90]
[335695314,1724437988994,593.72655377,0.00025,90]
[335695315,1724437994506,1000.0,0.00027,120]
[335695316,1724437994898,1000.0,0.00027,120]
[335695317,1724438000487,20000.0,0.00027,120]
[335695318,1724438028982,500.0,0.00027,120]
[335695319,1724438045620,200.0,0.00027,120]
[335695323,1724438120325,20000.0,0.00027,120]
[335695329,1724438272743,8000.0,0.00027,120]
[335695349,1724438447769,1050.0,0.0001,2]
[335695351,1724438516226,181.97999253,0.0001,2]
[335695352,1724438520375,155.12187653,0.0001,2]
[335695353,1724438522107,693.57471487,0.0001,2]
[335695354,1724438539183,485.07840464,0.0001,2]
[335695355,1724438542729,1995.16506776,0.0001,2]
[335695356,1724438595335,1000.0,0.00027,120]
[335695357,1724438596201,1000.0,0.00027,120]
[335695360,1724438629500,500.0,0.00027,120]
[335695361,1724438651572,200.0,0.00027,120]
[335695362,1724438657692,479.46,8.219e-05,2]
[335695377,1724438915823,949.54206571,9.962e-05,2]
[335695427,1724439032292,-479.46,0.00010474,2]
[335695428,1724439032306,-226.65031433,0.00010566,2]
[335695431,1724439032736,-114.26187852,0.00010566,2]
[335695432,1724439032746,-163.69762148,0.00010861,2]
[335695433,1724439032758,-627.85298596,0.00010861,2]
[335695434,1724439032770,-10174.28661659,0.00010861,2]
[335695435,1724439032785,-945.20479722,0.00010861,2]
[335695436,1724439032799,-1440.43885463,0.00010861,2]
[335695437,1724439038244,-1757.41072631,0.00010861,2]
[335695438,1724439038256,-309.55914346,0.00010861,2]
[335695440,1724439038318,-567.02253439,0.00010861,2]
[335695441,1724439038330,-1051.74850456,0.00010861,2]
[335695442,1724439038379,-18704.76575971,0.00010861,2]
[335695443,1724439038388,-35741.98754431,0.00010861,2]
[335695444,1724439038398,-1020.00472426,0.00010899,2]
[335695445,1724439038409,-1000.0,0.000109,2]
[335695446,1724439038419,-1000.0,0.000109,2]
[335695447,1724439038428,-200.0,0.0001095,2]
[335695448,1724439038437,-200.0,0.0001095,2]
[335695449,1724439038447,-169.1,0.00010959,2]
[335695450,1724439038457,-150.0,0.00010959,2]
[335695451,1724439038470,-430.6814491,0.00010979,2]
[335695452,1724439038480,-1000.0,0.00010997,2]
[335695453,1724439038490,-1000.0,0.00010999,2]
[335695454,1724439038499,-1000.0,0.00010999,2]
[335695455,1724439038509,-2000.0,0.00011,2]
[335695456,1724439038520,-2000.0,0.00011,2]
[335695457,1724439038529,-4026.8,0.00011,2]
[335695458,1724439038539,-500.0,0.00011164,2]
[335695459,1724439038549,-500.0,0.00011164,2]
[335695460,1724439038559,-1000.0,0.00011221,2]
[335695461,1724439038569,-2000.0,0.00012,2]
[335695462,1724439038579,-2000.0,0.00012,2]
[335695463,1724439038588,-294.233291,0.000121,2]
[335695464,1724439038598,-5416.36034523,0.00012499,2]
[335695465,1724439038610,-5533.35431226,0.00012499,2]
[335695467,1724439038621,-264.24,0.00012499,2]
[335695469,1724439038634,-9512.64249005,0.00012499,2]
[335695473,1724439038654,-3173.40285246,0.00012499,2]
[335695474,1724439038663,-40.53706681,0.00012534,2]
[335695486,1724439040485,-312.004999,0.00012534,2]
[335695487,1724439040509,-147.45793419,0.00012534,2]
[335695488,1724439040520,-212.79,0.00012544,2]
[335695489,1724439040530,-154.11,0.00012585,2]
[335695490,1724439040540,-436.95,0.00012635,2]
[335695491,1724439040550,-3749.0,0.00012677,2]
[335695492,1724439040560,-250.0,0.0001268,2]
[335695493,1724439040571,-479.46,0.00012728,2]
[335695494,1724439040581,-200.0,0.00012736,2]
[335695495,1724439040591,-1852.42,0.00012776,2]
[335695496,1724439040601,-907.53,0.00012786,2]
[335695497,1724439040611,-250.0,0.00012789,2]
[335695498,1724439040620,-257.82,0.0001279,2]
[335695499,1724439040629,-182.77,0.00012821,2]
[335695500,1724439040639,-500.0,0.00012896,2]
[335695501,1724439040648,-155.0,0.0001294,2]
[335695502,1724439040658,-2049.1,0.00013,2]
[335695503,1724439040668,-2049.099999,0.00013,2]
[335695504,1724439040677,-522.16077607,0.00013042,2]
[335695505,1724439040687,-347.69615481,0.00013052,2]
[335695506,1724439040696,-155.0,0.00013052,2]
[335695507,1724439040706,-330.15183337,0.00013086,2]
[335695508,1724439040716,-1000.0,0.00013499,2]
[335695509,1724439040725,-1000.0,0.00013699,2]
[335695510,1724439040735,-1000.0,0.00013699,2]
[335695511,1724439040745,-1767.7,0.00013699,2]
[335695512,1724439040755,-2751.0,0.00013699,2]
[335695513,1724439040765,-713.61,0.00013699,2]
[335695514,1724439040774,-500.0,0.00013699,2]
[335695515,1724439040784,-200.0,0.00013699,2]
[335695516,1724439040794,-1000.0,0.00013717,2]
[335695518,1724439040803,-500.0,0.00013904,2]
[335695520,1724439040813,-150.177585,0.00013975,3]
[335695522,1724439040822,-457.0,0.00014,2]
[335695524,1724439040834,-150.177585,0.00014,3]
[335695525,1724439040844,-150.0,0.00014,2]
[335695527,1724439040853,-247.78,0.00014177,2]
[335695529,1724439040863,-1767.7,0.00014384,2]
[335695531,1724439040873,-907.53,0.00014384,2]
[335695533,1724439040883,-457.0,0.000145,2]
[335695535,1724439040893,-151.02554851,0.00014752,2]
[335695537,1724439040902,-155.0,0.00014753,2]
[335695539,1724439040913,-155.0,0.00014753,2]
[335695542,1724439040922,-374.44789,0.0001485,2]
[335695545,1724439040932,-1000.0,0.00014879,2]
[335695548,1724439040942,-4146.25832252,0.00014882,2]
[335695550,1724439040951,-183.23410944,0.000149,2]
[335695552,1724439040960,-168.7496316,0.000149,2]
[335695554,1724439040970,-22767.84351305,0.000149,2]
[335695556,1724439040980,-5950.0,0.00014948,10]
[335695558,1724439040990,-500.0,0.00014973,2]
[335695560,1724439040999,-3773.73,0.00014979,2]
[335695562,1724439041008,-479.46,0.00014983,2]
[335695564,1724439041018,-6843.03377529,0.0001499,3]
[335695566,1724439041030,-6577.46844788,0.0001499,3]
[335695571,1724439041067,-93887.53637394,0.0001499,3]
[335695573,1724439041078,-18972.52289689,0.0001499,3]
[335695575,1724439041088,-43574.8930519,0.0001499,3]
[335695577,1724439041097,-150.82,0.0001499,2]
[335695579,1724439041107,-197.6982301,0.00014997,2]
[335695581,1724439041116,-1390.31729544,0.00014999,2]
[335695583,1724439041125,-1000.0,0.00014999,2]
[335695585,1724439041135,-500.0,0.00014999,2]
[335695587,1724439041145,-500.0,0.00014999,2]
[335695589,1724439041154,-600.14559237,0.00014999,2]
[335695591,1724439041164,-112897.94931735,0.00015,2]
[335695593,1724439041174,-223018.8320707,0.00015,2]
[335695595,1724439041183,-155.0,0.00015,2]
[335695597,1724439041194,-9352.0,0.00015,10]
[335695599,1724439041203,-615.8786716,0.00015,2]
[335695601,1724439041212,-496.0,0.00015,2]
[335695603,1724439041222,-175.94,0.00015,2]
[335695605,1724439041231,-1000.0,0.00015,4]
[335695607,1724439041241,-3000.0,0.00015,3]
[335695609,1724439041250,-3000.0,0.00015,3]
[335695611,1724439041259,-7000.0,0.00015,3]
[335695613,1724439041269,-496.0,0.00015,2]
[335695615,1724439041279,-17377.31794031,0.00015,2]
[335695617,1724439041288,-194.9598555,0.00015,2]
[335695619,1724439041302,-5389.0,0.00015,2]
[335695621,1724439041311,-496.0,0.00015,2]
[335695623,1724439041321,-300.0,0.00015,2]
[335695625,1724439041331,-1697.0,0.00015,2]
[335695627,1724439041341,-151.0,0.00015,2]
[335695629,1724439041351,-151.0,0.00015,2]
[335695631,1724439041360,-457.0,0.00015,2]
[335695633,1724439041369,-12431.0,0.00015,2]
[335695635,1724439041380,-513.23718053,0.00015,2]
[335695636,1724439041390,-186.88610544,0.00015,2]
[335695638,1724439041399,-150.0,0.00015,2]
[335695640,1724439041408,-150.0,0.00015,2]
[335695642,1724439041418,-229.31112018,0.00015,2]
[335695644,1724439041428,-272.96162048,0.00015,2]
[335695646,1724439041437,-150.0,0.00015,2]
[335695648,1724439041447,-150.0,0.00015,2]
[335695650,1724439041456,-150.0,0.00015,2]
[335695652,1724439041465,-150.0,0.00015,2]
[335695654,1724439041475,-150.0,0.00015,2]
[335695656,1724439041485,-162.49691874,0.00015,2]
[335695658,1724439041495,-150.0,0.00015,2]
[335695660,1724439041505,-150.0,0.00015,2]
[335695662,1724439041514,-2500.0,0.00015,5]
[335695664,1724439041524,-150.0,0.00015,2]
[335695666,1724439041534,-5121.7280113,0.00015028,2]
[335695668,1724439041543,-21787.4465259,0.00015028,3]
[335695670,1724439041553,-3017.3868365,0.00015038,2]
[335695672,1724439041562,-1767.7,0.00015068,2]
[335695674,1724439041572,-300.0,0.00015068,2]
[335695676,1724439041582,-500.0,0.000151,2]
[335695678,1724439041592,-513.23718053,0.0001522,2]
[335695680,1724439041601,-186.88610544,0.0001522,2]
[335695682,1724439041611,-229.31112018,0.0001522,2]
[335695684,1724439041620,-18040.0802135,0.00015234,3]
[335695686,1724439041630,-21787.4465259,0.00015234,3]
[335695688,1724439041641,-18040.0802135,0.00015244,3]
[335695690,1724439041650,-21787.4465259,0.00015244,3]
[335695692,1724439041659,-500.0,0.00015246,2]
[335695694,1724439041669,-47596.08430513,0.00015254,2]
[335695696,1724439041679,-500.0,0.00015274,2]
[335695698,1724439041688,-21787.4465259,0.0001529,3]
[335695700,1724439041698,-36080.160427,0.000153,3]
[335695702,1724439041707,-21787.4465259,0.000153,3]
[335695704,1724439041717,-13781.09,0.0001531,2]
[335695706,1724439041727,-203.91,0.0001531,2]
[335695708,1724439041736,-22424.55,0.0001531,2]
[335695710,1724439041745,-29999.99,0.0001531,2]
[335695712,1724439041755,-6677.53,0.0001531,2]
[335695714,1724439041764,-1000.088796,0.00015342,2]
[335695715,1724439041773,-374.4479,0.0001536,2]
[335695717,1724439041783,-21787.4465259,0.0001537,3]
[335695719,1724439041792,-18040.0802135,0.0001539,3]
[335695721,1724439041801,-15769.27004904,0.000154,2]
[335695723,1724439041811,-513.23718053,0.0001544,2]
[335695725,1724439041821,-186.88610544,0.0001544,2]
[335695727,1724439041830,-229.31112018,0.0001544,2]
[335695729,1724439041840,-457.0,0.000155,3]
[335695731,1724439041849,-1000.0,0.00015521,2]
[335695733,1724439041858,-150.0,0.00015532,2]
[335695735,1724439041868,-1000.0,0.00015601,2]
[335695737,1724439041877,-513.23718053,0.00015661,2]
[335695739,1724439041887,-186.88610544,0.00015661,2]
[335695741,1724439041896,-229.31112018,0.00015661,2]
[335695743,1724439041905,-4146.25832249,0.00015662,2]
[335695745,1724439041914,-154.11,0.00015731,2]
[335695747,1724439041923,-1767.7,0.00015753,2]
[335695749,1724439041933,-167.0,0.00015831,2]
[335695751,1724439041942,-21787.4465259,0.00015871,3]
[335695753,1724439041952,-513.23718053,0.00015881,2]
[335695755,1724439041961,-186.88610544,0.00015881,2]
[335695757,1724439041971,-229.31112018,0.00015881,2]
[335695759,1724439041980,-247.78,0.00015949,2]
[335695761,1724439041989,-18040.0802135,0.0001598,3]
[335695763,1724439041998,-907.53,0.00015982,2]
[335695765,1724439042007,-374.4479,0.0001599,2]
[335695767,1724439042016,-21787.4465259,0.0001599,3]
[335695769,1724439042025,-1000.0,0.00016,8]
[335695771,1724439042035,-1500.0,0.00016,10]
[335695773,1724439042044,-150.0,0.00016,4]
[335695775,1724439042053,-457.0,0.00016,3]
[335695777,1724439042062,-2000.0,0.00016,2]
[335695779,1724439042071,-286.889106,0.00016,2]
[335695781,1724439042080,-286.889106,0.00016,2]
[335695783,1724439042090,-150.0,0.00016,2]
[335695785,1724439042098,-177.43304188,0.00016001,2]
[335695787,1724439042107,-2000.0,0.0001601,2]
[335695789,1724439042116,-3966.343231,0.0001602,2]
[335695790,1724439042125,-182.77,0.00016027,2]
[335695792,1724439042134,-150.0,0.00016063,2]
[335695794,1724439042143,-18040.0802135,0.00016086,3]
[335695796,1724439042152,-21787.4465259,0.00016086,3]
[335695798,1724439042161,-21787.4465259,0.00016096,3]
[335695800,1724439042170,-513.23718053,0.00016101,2]
[335695802,1724439042179,-186.88610544,0.00016101,2]
[335695804,1724439042188,-229.31112018,0.00016101,2]
[335695806,1724439042197,-18040.0802135,0.00016106,3]
[335695808,1724439042206,-9999.99,0.00016116,2]
[335695810,1724439042215,-1000.088796,0.00016164,2]
[335695812,1724439042224,-153.0,0.00016181,2]
[335695814,1724439042233,-153.31,0.00016228,2]
[335695816,1724439042243,-513.23718053,0.00016321,2]
[335695818,1724439042252,-186.88610544,0.00016321,2]
[335695820,1724439042261,-229.31112018,0.00016321,2]
[335695822,1724439042270,-200.0,0.0001634,2]
[335695824,1724439042279,-167.0,0.00016354,2]
[335695826,1724439042288,-21787.4465259,0.00016397,3]
[335695828,1724439042298,-168.7496316,0.000164,2]
[335695830,1724439042312,-18040.0802135,0.00016408,3]
[335695832,1724439042322,-21787.4465259,0.00016408,3]
[335695834,1724439042331,-18040.0802135,0.00016418,3]
[335695836,1724439042341,-43574.8930519,0.00016418,3]
[335695838,1724439042350,-1208.67987352,0.00016419,2]
[335695840,1724439042359,-54120.2406405,0.00016428,3]
[335695842,1724439042369,-43574.8930519,0.00016428,3]
[335695844,1724439042379,-151.0,0.00016438,2]
[335695846,1724439042389,-1157.55,0.00016438,2]
[335695848,1724439042399,-1157.55,0.00016438,2]
[335695850,1724439042408,-1157.55,0.00016438,2]
[335695852,1724439042417,-1157.55,0.00016438,2]
[335695854,1724439042426,-1157.55,0.00016438,2]
[335695856,1724439042435,-1157.55,0.00016438,2]
[335695858,1724439042443,-1157.55,0.00016438,2]
[335695859,1724439042453,-1157.55,0.00016438,2]
[335695861,1724439042462,-1157.55,0.00016438,2]
[335695863,1724439042471,-1157.55,0.00016438,2]
[335695865,1724439042480,-1157.55,0.00016438,2]
[335695867,1724439042490,-1157.55,0.00016438,2]
[335695869,1724439042500,-1157.55,0.00016438,2]
[335695871,1724439042511,-1157.55,0.00016438,2]
[335695873,1724439042520,-1157.55,0.00016438,2]
[335695875,1724439042529,-1157.55,0.00016438,2]
[335695877,1724439042538,-1157.55,0.00016438,2]
[335695879,1724439042549,-1157.55,0.00016438,2]
[335695881,1724439042559,-1157.55,0.00016438,2]
[335695882,1724439042568,-1157.55,0.00016438,2]
[335695885,1724439042578,-1157.55,0.00016438,2]
[335695886,1724439042591,-1157.55,0.00016438,2]
[335695888,1724439042600,-1157.55,0.00016438,2]
[335695890,1724439042609,-1157.58505778,0.00016438,2]
[335695892,1724439042618,-395.27,0.00016438,2]
[335695894,1724439042628,-395.27,0.00016438,2]
[335695896,1724439042637,-395.27,0.00016438,2]
[335695898,1724439042646,-395.27,0.00016438,2]
[335695899,1724439042655,-395.27,0.00016438,2]
[335695901,1724439042664,-3082.05,0.00016438,2]
[335695903,1724439042674,-3082.05,0.00016438,2]
[335695905,1724439042684,-3082.05,0.00016438,2]
[335695907,1724439042693,-3082.05,0.00016438,2]
[335695909,1724439042703,-3082.05,0.00016438,2]
[335695911,1724439042713,-3082.05,0.00016438,2]
[335695912,1724439042723,-3082.05,0.00016438,2]
[335695913,1724439042733,-3082.05,0.00016438,2]
[335695914,1724439042742,-3082.05,0.00016438,2]
[335695915,1724439042752,-3082.05,0.00016438,2]
[335695916,1724439042761,-3082.05,0.00016438,2]
[335695917,1724439042771,-3082.05,0.00016438,2]
[335695918,1724439042781,-3082.05,0.00016438,2]
[335695919,1724439042790,-3082.05,0.00016438,2]
[335695920,1724439042799,-3082.05,0.00016438,2]
[335695921,1724439042809,-3082.05,0.00016438,2]
[335695922,1724439042818,-3082.05,0.00016438,2]
[335695923,1724439042827,-3082.05,0.00016438,2]
[335695924,1724439042846,-3082.05,0.00016438,2]
[335695925,1724439042855,-3082.05,0.00016438,2]
[335695926,1724439042865,-3082.05,0.00016438,2]
[335695927,1724439042874,-3082.05,0.00016438,2]
[335695928,1724439042883,-3082.05,0.00016438,2]
[335695929,1724439042892,-3082.17019235,0.00016438,2]
[335695930,1724439042901,-1000.0,0.00016438,2]
[335695931,1724439042910,-1767.7,0.00016438,2]
[335695932,1724439042920,-708.78,0.00016438,2]
[335695933,1724439042929,-300.0,0.00016438,2]
[335695934,1724439042938,-4146.25832249,0.00016442,2]
[335695935,1724439042947,-500.0,0.00016479,2]
[335695936,1724439042956,-457.0,0.000165,4]
[335695937,1724439042967,-513.23718053,0.00016541,2]
[335695938,1724439042976,-186.88610544,0.00016541,2]
[335695939,1724439042985,-229.31112018,0.00016541,2]
[335695940,1724439042994,-150.0,0.00016595,2]
[335695941,1724439043004,-374.44789,0.0001661,2]
[335695942,1724439043013,-300.0,0.00016636,2]
[335695943,1724439043022,-500.0,0.00016644,2]
[335695944,1724439043031,-403.95577772,0.0001665,2]
[335695945,1724439043041,-150.0,0.00016677,2]
[335695946,1724439043050,-217.18,0.00016712,2]
[335695947,1724439043059,-513.23718053,0.00016762,2]
[335695948,1724439043068,-186.88610544,0.00016762,2]
[335695949,1724439043077,-229.31112018,0.00016762,2]
[335695950,1724439043087,-150.0,0.00016817,2]
[335695951,1724439043096,-167.0,0.00016876,2]
[335695952,1724439043105,-21787.4465259,0.00016882,3]
[335695953,1724439043114,-1000.0,0.00016895,2]
[335695954,1724439043123,-18040.0802135,0.00016935,3]
[335695955,1724439043132,-7112.2544813,0.00016935,2]
[335695956,1724439043141,-21787.4465259,0.00016937,3]
[335695957,1724439043151,-3441.0113164,0.00016945,2]
[335695958,1724439043159,-18040.0802135,0.00016946,3]
[335695959,1724439043169,-43574.8930519,0.00016946,3]
[335695960,1724439043178,-395.27,0.00016956,5]
[335695962,1724439043187,-36080.160427,0.00016957,3]
[335695963,1724439043197,-21787.4465259,0.00016957,3]
[335695964,1724439043206,-150.0,0.00016973,2]
[335695965,1724439043215,-21787.4465259,0.00016976,3]
[335695966,1724439043224,-513.23718053,0.00016982,2]
[335695967,1724439043233,-186.88610544,0.00016982,2]
[335695969,1724439043243,-229.31112018,0.00016982,2]
[335695970,1724439043252,-1000.088796,0.00016986,2]
[335695971,1724439043260,-1000.0,0.00017,6]
[335695972,1724439043269,-324.81234881,0.00017,50]
[335695973,1724439043278,-457.0,0.00017,4]
[335695974,1724439043287,-150.0,0.00017,2]
[335695975,1724439043297,-403.95577772,0.00017061,2]
[335695976,1724439043311,-150.0,0.00017127,2]
[335695977,1724439043320,-513.23718053,0.00017202,2]
[335695978,1724439043329,-186.88610544,0.00017202,2]
[335695979,1724439043340,-229.31112018,0.00017202,2]
[335695980,1724439043349,-4146.25832249,0.00017221,2]
[335695981,1724439043358,-479.46,0.00017237,2]
[335695982,1724439043367,-374.4479,0.0001724,2]
[335695983,1724439043376,-500.0,0.00017252,2]
[335695984,1724439043387,-500.0,0.00017261,2]
[335695985,1724439043397,-500.0,0.0001727,2]
[335695986,1724439043406,-500.0,0.00017278,2]
[335695987,1724439043416,-150.177585,0.00017287,2]
[335695988,1724439043425,-500.0,0.00017287,2]